lending/lending_fUSD_20240112
["ID","MTS","AMOUNT","RATE_DAILY","PERIOD"]
[311398423,1705077062208,-500.0,0.00023059,2]
[311398424,1705077062217,-500.0,0.00023059,2]
[311398425,1705077062226,-500.0,0.00023059,2]
[311398426,1705077062236,-500.0,0.00023059,2]
[311398427,1705077062244,-500.0,0.00023059,2]
[311398428,1705077062254,-500.0,0.00023059,2]
[311398429,1705077062263,-500.0,0.00023059,2]
[311398430,1705077062272,-500.0,0.00023059,2]
[311398431,1705077062282,-500.0,0.00023059,2]
[311398432,1705077062291,-500.0,0.00023059,2]
[311398433,1705077062301,-500.0,0.00023059,2]
[311398434,1705077062310,-519.46,0.00023059,2]
[311398435,1705077062320,-516.68,0.00023059,2]
[311398436,1705077062330,-500.0,0.00023059,2]
[311398437,1705077062339,-175.02869725,0.00023059,2]
[311398438,1705077062349,-500.0,0.00023059,2]
[311398439,1705077062358,-500.0,0.00023059,2]
[311398440,1705077062367,-1080.77,0.00023059,2]
[311398441,1705077062377,-500.0,0.00023059,2]
[311398442,1705077062386,-500.0,0.00023059,2]
[311398443,1705077062397,-500.0,0.00023059,2]
[311398444,1705077062406,-500.0,0.00023059,2]
[311398445,1705077062416,-500.0,0.00023059,2]
[311398446,1705077062425,-500.0,0.00023059,2]
[311398447,1705077062434,-500.0,0.00023059,2]
[311398448,1705077062443,-710.97,0.00023059,2]
[311398449,1705077062453,-500.0,0.00023059,2]
[311398450,1705077062462,-500.0,0.00023059,2]
[311398451,1705077062472,-500.0,0.00023059,2]
[311398452,1705077062482,-500.0,0.00023059,2]
[311398453,1705077062491,-500.0,0.00023059,2]
[311398454,1705077062502,-1121.79,0.00023059,2]
[311398455,1705077062513,-500.0,0.00023059,2]
[311398456,1705077062523,-500.0,0.00023059,2]
[311398457,1705077062533,-500.0,0.00023059,2]
[311398458,1705077062543,-500.0,0.00023059,2]
[311398459,1705077062553,-500.0,0.00023059,2]
[311398460,1705077062562,-500.0,0.00023059,2]
[311398461,1705077062571,-500.0,0.00023059,2]
[311398462,1705077062582,-500.0,0.00023059,2]
[311398463,1705077062592,-500.0,0.00023059,2]
[311398464,1705077062601,-500.0,0.00023059,2]
[311398465,1705077062611,-500.0,0.00023059,2]
[311398466,1705077062620,-500.0,0.00023059,2]
[311398467,1705077062630,-500.0,0.00023059,2]
[311398468,1705077062639,-500.0,0.00023059,2]
[311398469,1705077062654,-500.0,0.00023059,2]
[311398470,1705077062664,-625.58,0.00023059,2]
[311398471,1705077062675,-500.0,0.00023059,2]
[311398472,1705077062685,-500.0,0.00023059,2]
[311398473,1705077062696,-500.0,0.00023059,2]
[311398474,1705077062706,-500.0,0.00023059,2]
[311398475,1705077062716,-500.0,0.00023059,2]
[311398476,1705077062727,-500.0,0.00023059,2]
[311398477,1705077062736,-500.0,0.00023059,2]
[311398478,1705077062746,-500.0,0.00023059,2]
[311398479,1705077062756,-500.0,0.00023059,2]
[311398480,1705077062766,-500.0,0.00023059,2]
[311398481,1705077062776,-500.0,0.00023059,2]
[311398482,1705077062786,-216.49512753,0.00023059,2]
[311398483,1705077062796,-358.49455742,0.00023059,2]
[311398484,1705077062806,-547.2552663,0.00023059,2]
[311398485,1705077062818,-500.0,0.00023059,2]
[311398486,1705077062827,-500.0,0.00023059,2]
[311398487,1705077062837,-500.0,0.00023059,2]
[311398488,1705077062846,-500.0,0.00023059,2]
[311398489,1705077062855,-616.43,0.00023059,2]
[311398490,1705077062865,-500.0,0.00023059,2]
[311398491,1705077062874,-500.0,0.00023059,2]
[311398492,1705077062884,-500.0,0.00023059,2]
[311398493,1705077062895,-500.0,0.00023059,2]
[311398494,1705077062905,-500.0,0.00023059,2]
[311398495,1705077062915,-500.0,0.00023059,2]
[311398496,1705077062924,-500.0,0.00023059,2]
[311398497,1705077062934,-500.0,0.00023059,2]
[311398498,1705077062943,-500.0,0.00023059,2]
[311398499,1705077062953,-500.0,0.00023059,2]
[311398500,1705077062962,-500.0,0.00023059,2]
[311398501,1705077062971,-500.0,0.00023059,2]
[311398502,1705077062980,-500.0,0.00023059,2]
[311398503,1705077062990,-500.0,0.00023059,2]
[311398504,1705077062999,-500.0,0.00023059,2]
[311398505,1705077063008,-500.0,0.00023059,2]
[311398506,1705077063018,-500.0,0.00023059,2]
[311398507,1705077063027,-500.0,0.00023059,2]
[311398508,1705077063036,-549.96793092,0.00023059,2]
[311398509,1705077063046,-343.0,0.00023059,2]
[311398510,1705077063055,-500.0,0.00023059,2]
[311398511,1705077063064,-500.0,0.00023059,2]
[311398512,1705077063073,-500.0,0.00023059,2]
[311398513,1705077063083,-500.0,0.00023059,2]
[311398514,1705077063092,-500.0,0.00023059,2]
[311398515,1705077063102,-249.70658788,0.00023059,2]
[311398516,1705077063111,-500.0,0.00023059,2]
[311398517,1705077063121,-719.05,0.00023059,2]
[311398518,1705077063131,-500.0,0.00023059,2]
[311398519,1705077063140,-500.0,0.00023059,2]
[311398520,1705077063152,-500.0,0.00023059,2]
[311398521,1705077063162,-500.0,0.00023059,2]
[311398522,1705077063172,-500.0,0.00023059,2]
[311398523,1705077063182,-500.0,0.00023059,2]
[311398524,1705077063191,-500.0,0.00023059,2]
[311398525,1705077063200,-604.24,0.00023059,2]
[311398526,1705077063211,-500.0,0.00023059,2]
[311398527,1705077063221,-500.0,0.00023059,2]
[311398528,1705077063231,-268.26411618,0.00023059,2]
[311398529,1705077063240,-500.0,0.00023059,2]
[311398530,1705077063250,-500.0,0.00023059,2]
[311398531,1705077063259,-500.0,0.00023059,2]
[311398532,1705077063269,-500.0,0.00023059,2]
[311398533,1705077063279,-500.0,0.00023059,2]
[311398534,1705077063289,-500.0,0.00023059,2]
[311398535,1705077063298,-500.0,0.00023059,2]
[311398536,1705077063308,-500.0,0.00023059,2]
[311398537,1705077063318,-500.0,0.00023059,2]
[311398538,1705077063327,-500.0,0.00023059,2]
[311398539,1705077063337,-423.06746059,0.00023059,2]
[311398540,1705077063347,-790.24,0.00023059,2]
[311398541,1705077063357,-500.0,0.00023059,2]
[311398542,1705077063366,-500.0,0.00023059,2]
[311398543,1705077063376,-500.0,0.00023059,2]
[311398544,1705077063386,-500.0,0.00023059,2]
[311398545,1705077063396,-500.0,0.00023059,2]
[311398546,1705077063406,-700.63,0.00023059,2]
[311398547,1705077063416,-500.0,0.00023059,2]
[311398548,1705077063425,-500.0,0.00023059,2]
[311398549,1705077063435,-500.0,0.00023059,2]
[311398550,1705077063445,-500.0,0.00023059,2]
[311398551,1705077063455,-500.0,0.00023059,2]
[311398552,1705077063465,-1719.73,0.00023059,2]
[311398553,1705077063474,-500.0,0.00023059,2]
[311398554,1705077063484,-205.9169873,0.00023059,2]
[311398555,1705077063494,-500.0,0.00023059,2]
[311398556,1705077063503,-986.0,0.00023059,2]
[311398557,1705077063513,-500.0,0.00023059,2]
[311398558,1705077063523,-500.0,0.00023059,2]
[311398559,1705077063533,-500.0,0.00023059,2]
[311398560,1705077063543,-500.0,0.00023059,2]
[311398561,1705077063553,-711.04,0.00023059,2]
[311398562,1705077063563,-500.0,0.00023059,2]
[311398563,1705077063573,-506.08,0.00023059,2]
[311398564,1705077063582,-500.0,0.00023059,2]
[311398565,1705077063592,-1746.57,0.00023059,2]
[311398566,1705077063601,-500.0,0.00023059,2]
[311398567,1705077063611,-500.0,0.00023059,2]
[311398568,1705077063621,-1020.11,0.00023059,2]
[311398569,1705077063631,-500.0,0.00023059,2]
[311398570,1705077063641,-250.0,0.00023059,2]
[311398571,1705077063652,-500.0,0.00023059,2]
[311398572,1705077063662,-777.31,0.00023059,2]
[311398573,1705077063672,-500.0,0.00023059,2]
[311398574,1705077063682,-500.0,0.00023059,2]
[311398575,1705077063691,-500.0,0.00023059,2]
[311398576,1705077063701,-500.0,0.00023059,2]
[311398577,1705077063711,-511.02,0.00023059,2]
[311398578,1705077063721,-2304.2,0.00023059,2]
[311398579,1705077063730,-500.0,0.00023059,2]
[311398580,1705077063742,-500.0,0.00023059,2]
[311398581,1705077063752,-207.643084,0.00023059,2]
[311398582,1705077063762,-500.0,0.00023059,2]
[311398583,1705077063772,-500.0,0.00023059,2]
[311398584,1705077063782,-2513.79,0.00023059,2]
[311398585,1705077063792,-1000.0,0.00023059,2]
[311398586,1705077063802,-500.0,0.00023059,2]
[311398587,1705077063811,-500.0,0.00023059,2]
[311398588,1705077063822,-500.0,0.00023059,2]
[311398589,1705077063832,-708.84,0.00023059,2]
[311398590,1705077063842,-500.0,0.00023059,2]
[311398591,1705077063853,-500.0,0.00023059,2]
[311398592,1705077063863,-500.0,0.00023059,2]
[311398593,1705077063873,-500.0,0.00023059,2]
[311398594,1705077063882,-299.46,0.0002306,2]
[311398595,1705077063892,-500.0,0.0002306,2]
[311398596,1705077063903,-630.68658742,0.0002306,2]
[311398597,1705077063913,-228.25863754,0.0002306,2]
[311398598,1705077063923,-500.0,0.0002306,2]
[311398599,1705077063933,-741.19,0.0002306,2]
[311398600,1705077063945,-500.0,0.0002306,2]
[311398601,1705077063954,-500.0,0.0002306,2]
[311398602,1705077063965,-500.0,0.0002306,2]
[311398603,1705077063975,-500.0,0.0002306,2]
[311398604,1705077063984,-500.0,0.0002306,2]
[311398605,1705077063993,-666.1,0.0002306,2]
[311398606,1705077064003,-500.0,0.0002306,2]
[311398607,1705077064013,-500.0,0.0002306,2]
[311398608,1705077064022,-500.0,0.0002306,2]
[311398609,1705077064032,-500.0,0.0002306,2]
[311398610,1705077064042,-500.0,0.0002306,2]
[311398611,1705077064052,-500.0,0.0002306,2]
[311398612,1705077064061,-500.0,0.0002306,2]
[311398613,1705077064071,-500.0,0.0002306,2]
[311398614,1705077064080,-500.0,0.0002306,2]
[311398615,1705077064090,-500.0,0.0002306,2]
[311398616,1705077064099,-500.0,0.0002306,2]
[311398617,1705077064109,-500.0,0.0002306,2]
[311398618,1705077064119,-500.0,0.0002306,2]
[311398619,1705077064129,-500.0,0.0002306,2]
[311398620,1705077064139,-500.0,0.0002306,2]
[311398621,1705077064151,-671.18,0.0002306,2]
[311398622,1705077064161,-500.0,0.0002306,2]
[311398623,1705077064171,-500.0,0.0002306,2]
[311398624,1705077064182,-500.0,0.0002306,2]
[311398625,1705077064191,-500.0,0.0002306,2]
[311398626,1705077064201,-500.0,0.0002306,2]
[311398627,1705077064212,-500.0,0.0002306,2]
[311398628,1705077064222,-170.42278381,0.0002306,2]
[311398629,1705077064232,-500.0,0.0002306,2]
[311398630,1705077064243,-599.35,0.0002306,2]
[311398631,1705077064253,-500.0,0.0002306,2]
[311398632,1705077064263,-500.0,0.0002306,2]
[311398633,1705077064273,-500.0,0.0002306,2]
[311398634,1705077064284,-500.0,0.0002306,2]
[311398635,1705077064294,-500.0,0.0002306,2]
[311398636,1705077064304,-500.0,0.0002306,2]
[311398637,1705077064314,-500.0,0.0002306,2]
[311398638,1705077064324,-500.0,0.0002306,2]
[311398639,1705077064334,-1194.85,0.0002306,2]
[311398640,1705077064344,-500.0,0.0002306,2]
[311398641,1705077064354,-500.0,0.0002306,2]
[311398642,1705077064364,-500.0,0.0002306,2]
[311398643,1705077064374,-500.0,0.0002306,2]
[311398644,1705077064384,-500.0,0.0002306,2]
[311398645,1705077064395,-835.11,0.0002306,2]
[311398646,1705077064405,-500.0,0.0002306,2]
[311398647,1705077064414,-500.0,0.0002306,2]
[311398648,1705077064425,-500.0,0.0002306,2]
[311398649,1705077064435,-500.0,0.0002306,2]
[311398650,1705077064445,-500.0,0.0002306,2]
[311398651,1705077064455,-293.82155025,0.0002306,2]
[311398652,1705077064465,-500.0,0.0002306,2]
[311398653,1705077064475,-500.0,0.0002306,2]
[311398654,1705077064488,-500.0,0.0002306,2]
[311398655,1705077064498,-500.0,0.0002306,2]
[311398656,1705077064507,-500.0,0.0002306,2]
[311398657,1705077064518,-500.0,0.0002306,2]
[311398658,1705077064529,-910.05,0.0002306,2]
[311398659,1705077064539,-500.0,0.0002306,2]
[311398660,1705077064549,-500.0,0.0002306,2]
[311398661,1705077064559,-500.0,0.0002306,2]
[311398662,1705077064569,-500.0,0.0002306,2]
[311398663,1705077064580,-500.0,0.0002306,2]
[311398664,1705077064590,-500.0,0.0002306,2]
[311398665,1705077064600,-500.0,0.0002306,2]
[311398666,1705077064609,-772.68,0.0002306,2]
[311398667,1705077064619,-500.0,0.0002306,2]
[311398668,1705077064629,-500.0,0.0002306,2]
[311398669,1705077064639,-500.0,0.0002306,2]
[311398670,1705077064649,-500.0,0.0002306,2]
[311398671,1705077064660,-500.0,0.0002306,2]
[311398672,1705077064670,-227.19507654,0.0002306,2]
[311398673,1705077064681,-500.0,0.0002306,2]
[311398674,1705077064692,-500.0,0.0002306,2]
[311398675,1705077064702,-500.0,0.0002306,2]
[311398676,1705077064711,-500.0,0.0002306,2]
[311398677,1705077064721,-500.0,0.0002306,2]
[311398678,1705077064731,-500.0,0.0002306,2]
[311398679,1705077064741,-500.0,0.0002306,2]
[311398680,1705077064751,-500.0,0.0002306,2]
[311398681,1705077064760,-500.0,0.0002306,2]
[311398682,1705077064770,-500.0,0.0002306,2]
[311398683,1705077064780,-758.57,0.0002306,2]
[311398684,1705077064790,-747.06,0.0002306,2]
[311398685,1705077064800,-500.0,0.0002306,2]
[311398686,1705077064809,-500.0,0.0002306,2]
[311398687,1705077064819,-500.0,0.0002306,2]
[311398688,1705077064830,-500.0,0.0002306,2]
[311398689,1705077064840,-481.67729772,0.0002306,2]
[311398690,1705077064850,-500.0,0.0002306,2]
[311398691,1705077064860,-500.0,0.0002306,2]
[311398692,1705077064870,-500.0,0.0002306,2]
[311398693,1705077064880,-500.0,0.0002306,2]
[311398694,1705077064889,-500.0,0.0002306,2]
[311398695,1705077064902,-500.0,0.0002306,2]
[311398696,1705077064913,-500.0,0.0002306,2]
[311398697,1705077064923,-500.0,0.0002306,2]
[311398698,1705077064933,-500.0,0.0002306,2]
[311398699,1705077064943,-500.0,0.0002306,2]
[311398700,1705077064953,-500.0,0.0002306,2]
[311398701,1705077064963,-500.0,0.0002306,2]
[311398702,1705077064973,-500.0,0.0002306,2]
[311398703,1705077064983,-500.0,0.0002306,2]
[311398704,1705077064993,-500.0,0.0002306,2]
[311398705,1705077065004,-1049.62,0.0002306,2]
[311398706,1705077065014,-500.0,0.0002306,2]
[311398707,1705077065024,-500.0,0.0002306,2]
[311398708,1705077065034,-500.0,0.0002306,2]
[311398709,1705077065044,-500.0,0.0002306,2]
[311398710,1705077065054,-500.0,0.0002306,2]
[311398711,1705077065064,-500.0,0.0002306,2]
[311398712,1705077065073,-500.0,0.0002306,2]
[311398713,1705077065083,-500.0,0.0002306,2]
[311398714,1705077065094,-500.0,0.0002306,2]
[311398715,1705077065104,-500.0,0.0002306,2]
[311398716,1705077065114,-500.0,0.0002306,2]
[311398717,1705077065125,-500.0,0.0002306,2]
[311398718,1705077065135,-500.0,0.0002306,2]
[311398719,1705077065146,-500.0,0.0002306,2]
[311398720,1705077065156,-500.0,0.0002306,2]
[311398721,1705077065167,-500.0,0.0002306,2]
[311398722,1705077065177,-500.0,0.0002306,2]
[311398723,1705077065187,-500.0,0.0002306,2]
[311398724,1705077065198,-500.0,0.0002306,2]
[311398725,1705077065208,-500.0,0.0002306,2]
[311398726,1705077065218,-500.0,0.0002306,2]
[311398727,1705077065229,-500.0,0.0002306,2]
[311398728,1705077065240,-500.0,0.0002306,2]
[311398729,1705077065251,-500.0,0.0002306,2]
[311398730,1705077065261,-500.0,0.0002306,2]
[311398731,1705077065272,-500.0,0.0002306,2]
[311398732,1705077065282,-1085.86,0.0002306,2]
[311398733,1705077065292,-500.0,0.0002306,2]
[311398734,1705077065304,-500.0,0.0002306,2]
[311398735,1705077065314,-767.7,0.0002306,2]
[311398736,1705077065523,-515.51,0.0002306,2]
[311398737,1705077065534,-500.0,0.0002306,2]
[311398738,1705077065545,-500.0,0.0002306,2]
[311398739,1705077065556,-500.0,0.0002306,2]
[311398740,1705077065566,-500.0,0.0002306,2]
[311398741,1705077065576,-500.0,0.0002306,2]
[311398742,1705077065586,-500.0,0.0002306,2]
[311398743,1705077065596,-500.0,0.0002306,2]
[311398744,1705077065606,-500.0,0.0002306,2]
[311398745,1705077065616,-500.0,0.0002306,2]
[311398746,1705077065626,-500.0,0.0002306,2]
[311398747,1705077065636,-500.0,0.0002306,2]
[311398748,1705077065648,-500.0,0.0002306,2]
[311398749,1705077065658,-678.28,0.0002306,2]
[311398750,1705077065669,-593.11809697,0.0002306,2]
[311398751,1705077065679,-500.0,0.0002306,2]
[311398752,1705077065688,-500.0,0.0002306,2]
[311398753,1705077065698,-3039.1,0.0002306,2]
[311398754,1705077065708,-500.0,0.0002306,2]
[311398755,1705077065717,-500.0,0.0002306,2]
[311398756,1705077065727,-500.0,0.0002306,2]
[311398757,1705077065736,-676.63,0.0002306,2]
[311398758,1705077065747,-500.0,0.0002306,2]
[311398759,1705077065756,-500.0,0.0002306,2]
[311398760,1705077065766,-500.0,0.0002306,2]
[311398761,1705077065776,-500.0,0.0002306,2]
[311398762,1705077065786,-500.0,0.0002306,2]
[311398763,1705077065795,-500.0,0.0002306,2]
[311398764,1705077065805,-500.0,0.0002306,2]
[311398765,1705077065815,-500.0,0.0002306,2]
[311398766,1705077065825,-296.61065055,0.0002306,2]
[311398767,1705077065835,-500.0,0.0002306,2]
[311398768,1705077065845,-500.0,0.0002306,2]
[311398769,1705077065855,-500.0,0.0002306,2]
[311398770,1705077065864,-407.00076012,0.0002306,2]
[311398771,1705077065875,-902.95,0.0002306,2]
[311398772,1705077065884,-500.0,0.0002306,2]
[311398773,1705077065895,-500.0,0.0002306,2]
[311398774,1705077065906,-500.0,0.0002306,2]
[311398775,1705077065916,-500.0,0.0002306,2]
[311398776,1705077065926,-500.0,0.0002306,2]
[311398777,1705077065936,-389.28535053,0.0002306,2]
[311398778,1705077065945,-500.0,0.0002306,2]
[311398779,1705077065956,-500.0,0.0002306,2]
[311398780,1705077065966,-500.0,0.0002306,2]
[311398781,1705077065976,-500.0,0.0002306,2]
[311398782,1705077065987,-605.4,0.0002306,2]
[311398783,1705077065998,-500.0,0.0002306,2]
[311398784,1705077066008,-500.0,0.0002306,2]
[311398785,1705077066019,-500.0,0.0002306,2]
[311398786,1705077066030,-425.77809684,0.0002306,2]
[311398787,1705077066041,-500.0,0.00023062,2]
[311398788,1705077066051,-500.0,0.00023062,2]
[311398789,1705077066061,-500.0,0.00023063,2]
[311398790,1705077066071,-500.0,0.00023063,2]
[311398791,1705077066081,-500.0,0.00023063,2]
[311398792,1705077066091,-500.0,0.00023065,2]
[311398793,1705077066101,-6168.89981772,0.00023067,2]
[311398794,1705077066112,-195.22,0.00023077,2]
[311398795,1705077066122,-205.0,0.00023079,2]
[311398796,1705077066132,-205.0,0.00023079,2]
[311398797,1705077066142,-151.82,0.00023079,2]
[311398798,1705077066154,-150.4,0.00023101,2]
[311398799,1705077066164,-168.86,0.00023113,2]
[311398800,1705077066175,-6168.89981772,0.00023123,2]
[311398801,1705077066185,-153.88,0.00023123,2]
[311398802,1705077066195,-332.08,0.00023138,2]
[311398803,1705077066205,-6168.89981772,0.00023178,2]
[311398804,1705077066216,-195.22,0.00023192,2]
[311398805,1705077066227,-151.82,0.00023234,2]
[311398806,1705077066237,-6168.89981772,0.00023234,2]
[311398807,1705077066246,-332.08,0.00023253,2]
[311398808,1705077066256,-150.4,0.00023255,2]
[311398809,1705077066266,-1050.52164541,0.0002328,2]
[311398810,1705077066276,-157.53,0.00023282,2]
[311398811,1705077066285,-287.82873987,0.00023288,2]
[311398812,1705077066296,-500.0,0.00023288,2]
[311398813,1705077066306,-403.86360965,0.00023288,2]
[311398814,1705077066316,-425.60000001,0.00023288,2]
[311398815,1705077066325,-613.37417641,0.00023288,2]
[311398816,1705077066335,-450.48216947,0.00023288,2]
[311398817,1705077066346,-232.10263168,0.00023288,2]
[311398818,1705077066356,-182.4,0.00023288,2]
[311398819,1705077066367,-515.23430819,0.00023288,2]
[311398820,1705077066378,-275.52672504,0.00023288,2]
[311398821,1705077066389,-353.56364433,0.00023288,2]
[311398822,1705077066400,-351.66142593,0.00023288,2]
[311398823,1705077066409,-6168.89981772,0.00023289,2]
[311398824,1705077066420,-155.0,0.000233,2]
[311398825,1705077066430,-195.22,0.00023306,2]
[311398826,1705077066441,-500.0,0.00023327,2]
[311398827,1705077066451,-500.0,0.00023327,2]
[311398828,1705077066462,-625.39,0.00023327,2]
[311398829,1705077066472,-500.0,0.00023327,2]
[311398830,1705077066483,-1429.49,0.00023328,2]
[311398831,1705077066496,-9945.1,0.00023328,2]
[311398832,1705077066507,-978.78,0.00023328,2]
[311398833,1705077066517,-1378.24,0.00023328,2]
[311398834,1705077066528,-867.37,0.00023328,2]
[311398835,1705077066539,-576.62,0.00023328,2]
[311398836,1705077066549,-1895.37,0.00023328,2]
[311398837,1705077066561,-741.66,0.00023328,2]
[311398838,1705077066571,-594.56,0.00023328,2]
[311398839,1705077066584,-28063.97,0.00023328,2]
[311398840,1705077066594,-500.0,0.00023328,2]
[311398841,1705077066604,-1179.37,0.00023328,2]
[311398842,1705077066616,-1161.83,0.00023328,2]
[311398843,1705077066626,-16126.91,0.00023328,2]
[311398844,1705077066635,-5776.69,0.00023328,2]
[311398845,1705077066646,-854.65,0.00023328,2]
[311398846,1705077066656,-788.93,0.00023328,2]
[311398847,1705077066666,-500.0,0.00023328,2]
[311398848,1705077066677,-846.93,0.00023328,2]
[311398849,1705077066687,-500.0,0.00023328,2]
[311398850,1705077066697,-2347.67,0.00023328,2]
[311398851,1705077066707,-944.74,0.00023328,2]
[311398852,1705077066717,-556.66,0.00023328,2]
[311398853,1705077066726,-915.17,0.00023328,2]
[311398854,1705077066736,-801.65,0.00023328,2]
[311398855,1705077066746,-11316.9,0.00023328,2]
[311398856,1705077066756,-1188.34,0.00023328,2]
[311398857,1705077066766,-1285.67,0.00023328,2]
[311398858,1705077066776,-520.06,0.00023328,2]
[311398859,1705077066787,-500.0,0.00023328,2]
[311398860,1705077066796,-1592.48,0.00023328,2]
[311398861,1705077066806,-575.88,0.00023328,2]
[311398862,1705077066815,-1869.56,0.00023328,2]
[311398863,1705077066824,-1025.29,0.00023328,2]
[311398864,1705077066834,-765.07,0.00023328,2]
[311398865,1705077066843,-1932.17,0.00023328,2]
[311398866,1705077066853,-500.0,0.00023328,2]
[311398867,1705077066862,-500.0,0.00023328,2]
[311398868,1705077066871,-825.06,0.00023328,2]
[311398869,1705077066880,-1309.88,0.00023328,2]
[311398870,1705077066890,-150.0,0.00023329,2]
[311398871,1705077066901,-500.0,0.0002333,2]
[311398872,1705077066910,-1331.39,0.0002333,2]
[311398873,1705077066919,-1601.07,0.0002333,2]
[311398874,1705077066929,-1448.76,0.0002333,5]
[311398875,1705077066939,-553.23,0.0002333,2]
[311398876,1705077066949,-6027.14,0.0002333,2]
[311398877,1705077066958,-8057.22,0.0002333,2]
[311398878,1705077066968,-2024.92,0.0002333,2]
[311398879,1705077066978,-839.27,0.0002333,2]
[311398880,1705077066988,-1398.26,0.0002333,2]
[311398881,1705077066999,-4395.36,0.0002333,2]
[311398882,1705077067009,-791.14,0.0002333,2]
[311398883,1705077067019,-500.0,0.00023331,2]
[311398884,1705077067029,-976.62,0.00023331,2]
[311398885,1705077067038,-500.0,0.00023331,2]
[311398886,1705077067048,-937.67,0.00023331,2]
[311398887,1705077067058,-500.0,0.00023331,2]
[311398888,1705077067068,-500.0,0.00023331,2]
[311398889,1705077067078,-500.0,0.00023331,2]
[311398890,1705077067088,-500.0,0.00023331,2]
[311398891,1705077067098,-500.0,0.00023331,2]
[311398892,1705077067109,-500.0,0.00023331,2]
[311398893,1705077067119,-500.0,0.00023331,2]
[311398894,1705077067128,-500.0,0.00023331,2]
[311398895,1705077067138,-500.0,0.00023331,2]
[311398896,1705077067150,-500.0,0.00023331,2]
[311398897,1705077067159,-500.0,0.00023331,2]
[311398898,1705077067169,-500.0,0.00023331,2]
[311398899,1705077067179,-500.0,0.00023331,2]
[311398900,1705077067190,-500.0,0.00023331,2]
[311398901,1705077067200,-500.0,0.00023331,2]
[311398902,1705077067210,-500.0,0.00023331,2]
[311398903,1705077067221,-500.0,0.00023331,2]
[311398904,1705077067231,-500.0,0.00023331,2]
[311398905,1705077067240,-500.0,0.00023331,2]
[311398906,1705077067250,-500.0,0.00023331,2]
[311398907,1705077067261,-500.0,0.00023331,2]
[311398908,1705077067271,-1107.53,0.00023331,2]
[311398909,1705077067281,-500.0,0.00023331,2]
[311398910,1705077067292,-500.0,0.00023331,2]
[311398911,1705077067302,-608.63,0.00023331,2]
[311398912,1705077067313,-500.0,0.00023331,2]
[311398913,1705077067323,-500.0,0.00023331,2]
[311398914,1705077067333,-500.0,0.00023331,2]
[311398915,1705077067344,-500.0,0.00023331,2]
[311398916,1705077067354,-594.48,0.00023331,2]
[311398917,1705077067365,-500.0,0.00023331,2]
[311398918,1705077067376,-500.0,0.00023331,2]
[311398919,1705077067387,-565.8,0.00023331,2]
[311398920,1705077067397,-428.06358334,0.00023331,2]
[311398921,1705077067409,-500.0,0.00023331,2]
[311398922,1705077067420,-500.0,0.00023331,2]